fUST/lending_fUST_20241223
["ID","MTS","AMOUNT","RATE_DAILY","PERIOD"]
[346346130,1734901850310,-3000.0,0.0001626,2]
[346346131,1734901850320,-3000.0,0.0001627,2]
[346346132,1734901850329,-1020.94027274,0.00016274,2]
[346346133,1734901850356,-2200.0,0.00016274,2]
[346346134,1734901850638,-549.742494,0.00016274,2]
[346346135,1734901850812,-411.90665405,0.00016274,2]
[346346136,1734901850824,-6123.65005944,0.00016274,2]
[346346137,1734901850833,-3000.0,0.0001628,2]
[346346138,1734901850847,-3000.0,0.0001629,2]
[346346139,1734901850856,-3487.41,0.000163,2]
[346346140,1734901850866,-3000.0,0.000163,2]
[346346141,1734901850875,-3000.0,0.0001631,2]
[346346142,1734901850884,-3000.0,0.0001632,2]
[346346143,1734901850893,-3000.0,0.0001633,2]
[346346144,1734901850902,-210.0254119,0.00016335,2]
[346346145,1734901850912,-3000.0,0.0001634,2]
[346346146,1734901850921,-3000.0,0.0001635,2]
[346346147,1734901850930,-436.2237898,0.00016352,2]
[346346148,1734901850939,-4792.058066,0.0001636,2]
[346346149,1734901850948,-642.75821306,0.0001637,2]
[346346150,1734901850957,-500.0,0.00016438,2]
[346346151,1734901850966,-500.0,0.00016438,2]
[346346152,1734901850975,-500.0,0.00016438,2]
[346346153,1734901850984,-491.98629013,0.00016438,2]
[346346154,1734901850993,-500.0,0.00016438,2]
[346346155,1734901851003,-500.0,0.00016438,2]
[346346156,1734901851012,-500.0,0.00016438,2]
[346346157,1734901851021,-500.0,0.00016438,2]
[346346158,1734901851030,-500.0,0.00016438,2]
[346346159,1734901851039,-500.0,0.00016438,2]
[346346160,1734901851048,-500.0,0.00016438,2]
[346346161,1734901851057,-500.0,0.00016438,2]
[346346162,1734901851066,-500.0,0.00016438,2]
[346346163,1734901851075,-500.0,0.00016438,2]
[346346164,1734901851087,-500.0,0.00016438,2]
[346346165,1734901851097,-432.72147041,0.00016438,2]
[346346166,1734901851108,-500.0,0.00016438,2]
[346346167,1734901851118,-500.0,0.00016438,2]
[346346168,1734901851127,-550.78,0.00016438,2]
[346346169,1734901851136,-672.5,0.00016438,2]
[346346170,1734901851145,-500.0,0.00016438,2]
[346346171,1734901851154,-500.0,0.00016438,2]
[346346172,1734901851163,-543.03011717,0.00016438,2]
[346346173,1734901851172,-500.0,0.00016438,2]
[346346174,1734901851182,-500.0,0.00016438,2]
[346346175,1734901851192,-500.0,0.00016438,2]
[346346176,1734901851201,-500.0,0.00016438,2]
[346346177,1734901851210,-500.0,0.00016438,2]
[346346178,1734901851221,-500.0,0.00016438,2]
[346346179,1734901851231,-500.0,0.00016438,2]
[346346180,1734901851241,-500.0,0.00016438,2]
[346346181,1734901851250,-500.0,0.00016438,2]
[346346182,1734901851260,-664.65,0.00016438,2]
[346346183,1734901851270,-824.37,0.00016438,2]
[346346184,1734901851280,-5822.56,0.00016438,2]
[346346185,1734901851290,-3691.65,0.00016438,2]
[346346186,1734901851300,-538.47,0.00016438,2]
[346346187,1734901851309,-500.0,0.00016438,2]
[346346188,1734901851319,-2853.18,0.00016438,2]
[346346189,1734901851329,-500.0,0.00016438,2]
[346346190,1734901851351,-500.0,0.00016438,2]
[346346191,1734901851361,-500.0,0.00016438,2]
[346346192,1734901851370,-500.0,0.00016438,2]
[346346193,1734901851381,-500.0,0.00016438,2]
[346346194,1734901851391,-536.33907724,0.00016438,2]
[346346195,1734901851402,-500.0,0.00016438,2]
[346346196,1734901851412,-1083.63,0.00016438,2]
[346346197,1734901851422,-500.0,0.00016438,2]
[346346198,1734901851432,-979.18,0.00016438,2]
[346346199,1734901851443,-537.3,0.00016438,2]
[346346200,1734901851453,-500.0,0.00016438,2]
[346346201,1734901851463,-718.12,0.00016438,2]
[346346202,1734901851473,-765.66,0.00016438,2]
[346346203,1734901851483,-500.0,0.00016438,2]
[346346204,1734901851493,-1030.28,0.00016438,2]
[346346205,1734901851503,-500.0,0.00016438,2]
[346346206,1734901851514,-500.0,0.00016438,2]
[346346207,1734901851524,-500.0,0.00016438,2]
[346346208,1734901851536,-997.01,0.00016438,2]
[346346209,1734901851547,-510.54,0.00016438,2]
[346346210,1734901851558,-500.0,0.00016438,2]
[346346211,1734901851569,-500.0,0.00016438,2]
[346346212,1734901851580,-500.0,0.00016438,2]
[346346213,1734901851602,-500.0,0.00016438,2]
[346346214,1734901851612,-267.22357413,0.00016438,2]
[346346215,1734901851622,-9333.04,0.00016438,2]
[346346216,1734901851633,-2728.49,0.00016438,2]
[346346217,1734901851642,-506.08,0.00016438,2]
[346346218,1734901851652,-2704.31508363,0.0001644,2]
[346346219,1734901851661,-2704.31508363,0.0001644,2]
[346346220,1734901851670,-2704.31508363,0.0001644,2]
[346346221,1734901851679,-2704.31508363,0.0001644,2]
[346346222,1734901851689,-2704.31508363,0.0001644,2]
[346346223,1734901851698,-2704.31508363,0.0001644,2]
[346346224,1734901851707,-2704.31508363,0.0001644,2]
[346346225,1734901851717,-2704.31508363,0.0001644,2]
[346346226,1734901851728,-2704.31508363,0.0001644,2]
[346346227,1734901851738,-2704.31508363,0.0001644,2]
[346346228,1734901851748,-2704.31508363,0.0001644,2]
[346346229,1734901851758,-2704.31508363,0.0001644,2]
[346346230,1734901851767,-2704.31508363,0.0001644,2]
[346346231,1734901851777,-2704.31508363,0.0001644,2]
[346346232,1734901851786,-2704.31508363,0.0001644,2]
[346346233,1734901851795,-2704.31508363,0.0001644,2]
[346346234,1734901851805,-2704.31508363,0.0001644,2]
[346346235,1734901851814,-2704.31508363,0.0001644,2]
[346346236,1734901851823,-2704.31508363,0.0001644,2]
[346346237,1734901851834,-2704.31,0.0001644,2]
[346346238,1734901851848,-837.30809425,0.0001644,2]
[346346239,1734901851858,-837.30809425,0.0001644,2]
[346346240,1734901851867,-837.30809425,0.0001644,2]
[346346241,1734901851876,-837.30809425,0.0001644,2]
[346346242,1734901851885,-837.30809425,0.0001644,2]
[346346243,1734901851895,-837.30809425,0.0001644,2]
[346346244,1734901851904,-837.30809425,0.0001644,2]
[346346245,1734901851914,-837.30809425,0.0001644,2]
[346346246,1734901851923,-837.30809425,0.0001644,2]
[346346247,1734901851932,-837.30809425,0.0001644,2]
[346346248,1734901851941,-837.30809425,0.0001644,2]
[346346249,1734901851950,-837.30809425,0.0001644,2]
[346346250,1734901851959,-837.30809425,0.0001644,2]
[346346251,1734901851968,-837.30809425,0.0001644,2]
[346346252,1734901851977,-837.30809425,0.0001644,2]
[346346253,1734901851986,-837.30809425,0.0001644,2]
[346346254,1734901851995,-837.30809425,0.0001644,2]
[346346255,1734901852004,-837.30809425,0.0001644,2]
[346346256,1734901852013,-837.30809425,0.0001644,2]
[346346257,1734901852022,-837.3,0.0001644,2]
[346346258,1734901852032,-164.59209738,0.0001644,2]
[346346259,1734901852041,-164.59209738,0.0001644,2]
[346346260,1734901852050,-164.59,0.0001644,2]
[346346261,1734901852060,-587.0,0.00016449,2]
[346346262,1734901852069,-349.01757869,0.00016499,2]
[346346263,1734901852078,-274.31752899,0.00016499,2]
[346346264,1734901852093,-184231.8204761,0.000165,2]
[346346265,1734901852102,-22488.95477641,0.0001652,2]
[346346266,1734901852111,-160.0,0.00016556,3]
[346346267,1734901852121,-1500.0,0.0001666,2]
[346346268,1734901852130,-500.0,0.00016712,2]
[346346269,1734901852139,-447.38931127,0.00016712,2]
[346346270,1734901852149,-500.0,0.00016712,2]
[346346271,1734901852158,-323.67786012,0.00016712,2]
[346346272,1734901852167,-500.0,0.00016712,2]
[346346273,1734901852177,-500.0,0.00016712,2]
[346346274,1734901852186,-500.0,0.00016712,2]
[346346275,1734901852195,-550.78,0.00016712,2]
[346346276,1734901852205,-672.5,0.00016712,2]
[346346277,1734901852214,-500.0,0.00016712,2]
[346346278,1734901852223,-500.0,0.00016712,2]
[346346279,1734901852232,-500.0,0.00016712,2]
[346346280,1734901852242,-500.0,0.00016712,2]
[346346281,1734901852251,-500.0,0.00016712,2]
[346346282,1734901852260,-500.0,0.00016712,2]
[346346283,1734901852269,-500.0,0.00016712,2]
[346346284,1734901852278,-500.0,0.00016712,2]
[346346285,1734901852288,-500.0,0.00016712,2]
[346346286,1734901852298,-500.0,0.00016712,2]
[346346287,1734901852307,-500.0,0.00016712,2]
[346346288,1734901852316,-664.65,0.00016712,2]
[346346289,1734901852325,-178.0087287,0.00016712,2]
[346346290,1734901852336,-824.37,0.00016712,2]
[346346291,1734901852346,-5822.56,0.00016712,2]
[346346292,1734901852355,-3691.65,0.00016712,2]
[346346293,1734901852364,-538.47,0.00016712,2]
[346346294,1734901852373,-500.0,0.00016712,2]
[346346295,1734901852382,-2853.18,0.00016712,2]
[346346296,1734901852393,-500.0,0.00016712,2]
[346346297,1734901852402,-500.0,0.00016712,2]
[346346298,1734901852411,-500.0,0.00016712,2]
[346346299,1734901852420,-197.32577933,0.00016712,2]
[346346300,1734901852429,-500.0,0.00016712,2]
[346346301,1734901852439,-500.0,0.00016712,2]
[346346302,1734901852448,-1083.63,0.00016712,2]
[346346303,1734901852487,-500.0,0.00016712,2]
[346346304,1734901852497,-979.18,0.00016712,2]
[346346305,1734901852506,-537.3,0.00016712,2]
[346346306,1734901852516,-150.11,0.00016712,2]
[346346307,1734901852526,-445.88373185,0.00016712,2]
[346346308,1734901852537,-718.12,0.00016712,2]
[346346309,1734901852546,-765.66,0.00016712,2]
[346346310,1734901852556,-500.0,0.00016712,2]
[346346311,1734901852565,-1030.28,0.00016712,2]
[346346312,1734901852574,-500.0,0.00016712,2]
[346346313,1734901852584,-493.68784366,0.00016712,2]
[346346314,1734901852593,-500.0,0.00016712,2]
[346346315,1734901852602,-997.01,0.00016712,2]
[346346316,1734901852611,-510.54,0.00016712,2]
[346346317,1734901852620,-9333.04,0.00016712,2]
[346346318,1734901852630,-2728.49,0.00016712,2]
[346346319,1734901852639,-506.08,0.00016712,2]
[346346320,1734901852648,-1500.0,0.00016886,2]
[346346321,1734901852658,-506.0,0.000169,6]
[346346322,1734901852667,-1500.0,0.00016946,2]
[346346323,1734901852677,-150.11,0.00016986,2]
[346346324,1734901852686,-500.0,0.00016986,2]
[346346325,1734901852695,-500.0,0.00016986,2]
[346346326,1734901852704,-500.0,0.00016986,2]
[346346327,1734901852714,-500.0,0.00016986,2]
[346346328,1734901852725,-500.0,0.00016986,2]
[346346329,1734901852734,-550.78,0.00016986,2]
[346346330,1734901852743,-672.5,0.00016986,2]
[346346331,1734901852752,-500.0,0.00016986,2]
[346346332,1734901852762,-500.0,0.00016986,2]
[346346333,1734901852771,-228.67115003,0.00016986,2]
[346346334,1734901852779,-500.0,0.00016986,2]
[346346335,1734901852789,-500.0,0.00016986,2]
[346346336,1734901852798,-500.0,0.00016986,2]
[346346337,1734901852807,-500.0,0.00016986,2]
[346346338,1734901852817,-500.0,0.00016986,2]
[346346339,1734901852827,-500.0,0.00016986,2]
[346346340,1734901852836,-500.0,0.00016986,2]
[346346341,1734901852846,-574.31581598,0.00016986,2]
[346346342,1734901852855,-664.65,0.00016986,2]
[346346343,1734901852864,-824.37,0.00016986,2]
[346346344,1734901852874,-5822.56,0.00016986,2]
[346346345,1734901852883,-3691.65,0.00016986,2]
[346346346,1734901852892,-538.47,0.00016986,2]
[346346347,1734901852901,-500.0,0.00016986,2]
[346346348,1734901852911,-2853.18,0.00016986,2]
[346346349,1734901852920,-500.0,0.00016986,2]
[346346350,1734901852930,-500.0,0.00016986,2]
[346346351,1734901852939,-500.0,0.00016986,2]
[346346352,1734901852948,-500.0,0.00016986,2]
[346346353,1734901852957,-500.0,0.00016986,2]
[346346354,1734901852967,-1083.63,0.00016986,2]
[346346355,1734901852976,-247.5883943,0.00016986,2]
[346346356,1734901852985,-979.18,0.00016986,2]
[346346357,1734901852995,-537.3,0.00016986,2]
[346346358,1734901853004,-718.12,0.00016986,2]
[346346359,1734901853014,-765.66,0.00016986,2]
[346346360,1734901853023,-500.0,0.00016986,2]
[346346361,1734901853032,-1030.28,0.00016986,2]
[346346362,1734901853042,-500.0,0.00016986,2]
[346346363,1734901853051,-207.69052697,0.00016986,2]
[346346364,1734901853060,-997.01,0.00016986,2]
[346346365,1734901853070,-510.54,0.00016986,2]
[346346366,1734901853080,-9333.04,0.00016986,2]
[346346367,1734901853090,-2728.49,0.00016986,2]
[346346368,1734901853099,-506.08,0.00016986,2]
[346346369,1734901853108,-1000.0,0.00017,17]
[346346370,1734901853118,-642.75821306,0.00017202,2]
[346346371,1734901853127,-427.94305105,0.00017248,2]
[346346372,1734901853136,-151.5604752,0.0001726,2]
[346346373,1734901853145,-500.0,0.0001726,2]
[346346374,1734901853154,-500.0,0.0001726,2]
[346346375,1734901853163,-500.0,0.0001726,2]
[346346376,1734901853173,-500.0,0.0001726,2]
[346346377,1734901853181,-500.0,0.0001726,2]
[346346378,1734901853191,-550.78,0.0001726,2]
[346346379,1734901853200,-672.5,0.0001726,2]
[346346380,1734901853210,-500.0,0.0001726,2]
[346346381,1734901853219,-500.0,0.0001726,2]
[346346382,1734901853228,-500.0,0.0001726,2]
[346346383,1734901853237,-500.0,0.0001726,2]
[346346384,1734901853247,-500.0,0.0001726,2]
[346346385,1734901853256,-500.0,0.0001726,2]
[346346386,1734901853266,-500.0,0.0001726,2]
[346346387,1734901853275,-500.0,0.0001726,2]
[346346388,1734901853285,-236.94000675,0.0001726,2]
[346346389,1734901853294,-664.65,0.0001726,2]
[346346390,1734901853303,-824.37,0.0001726,2]
[346346391,1734901853313,-5822.56,0.0001726,2]
[346346392,1734901853322,-3691.65,0.0001726,2]
[346346393,1734901853331,-538.47,0.0001726,2]
[346346394,1734901853340,-500.0,0.0001726,2]
[346346395,1734901853350,-2853.18,0.0001726,2]
[346346396,1734901853360,-500.0,0.0001726,2]
[346346397,1734901853369,-500.0,0.0001726,2]
[346346398,1734901853379,-500.0,0.0001726,2]
[346346399,1734901853388,-500.0,0.0001726,2]
[346346400,1734901853397,-500.0,0.0001726,2]
[346346401,1734901853406,-1083.63,0.0001726,2]
[346346402,1734901853416,-979.18,0.0001726,2]
[346346403,1734901853425,-537.3,0.0001726,2]
[346346404,1734901853434,-718.12,0.0001726,2]
[346346405,1734901853443,-765.66,0.0001726,2]
[346346406,1734901853453,-500.0,0.0001726,2]
[346346407,1734901853462,-1030.28,0.0001726,2]
[346346408,1734901853472,-500.0,0.0001726,2]
[346346409,1734901853481,-997.01,0.0001726,2]
[346346410,1734901853490,-510.54,0.0001726,2]
[346346411,1734901853500,-9333.04,0.0001726,2]
[346346412,1734901853509,-2728.49,0.0001726,2]
[346346413,1734901853521,-506.08,0.0001726,2]
[346346414,1734901853530,-160.0,0.00017403,4]
[346346415,1734901853541,-153.0,0.0001744,2]
[346346416,1734901853551,-153.0,0.0001744,2]
[346346417,1734901853559,-153.0,0.0001744,2]
[346346418,1734901853569,-153.0,0.0001744,2]
[346346419,1734901853578,-153.0,0.0001744,2]
[346346420,1734901853589,-153.0,0.0001744,2]
[346346421,1734901853598,-153.0,0.0001744,2]
[346346422,1734901853607,-160.0,0.00017533,2]
[346346423,1734901853616,-500.0,0.00017534,2]
[346346424,1734901853626,-500.0,0.00017534,2]
[346346425,1734901853635,-500.0,0.00017534,2]
[346346426,1734901853644,-500.0,0.00017534,2]
[346346427,1734901853653,-489.19786607,0.00017534,2]
[346346428,1734901853663,-550.78,0.00017534,2]
[346346429,1734901853672,-672.5,0.00017534,2]
[346346430,1734901853681,-500.0,0.00017534,2]
[346346431,1734901853690,-605.62280122,0.00017534,2]
[346346432,1734901853698,-500.0,0.00017534,2]
[346346433,1734901853708,-500.0,0.00017534,2]
[346346434,1734901853719,-500.0,0.00017534,2]
[346346435,1734901853730,-500.0,0.00017534,2]
[346346436,1734901853739,-500.0,0.00017534,2]
[346346437,1734901853748,-333.23759562,0.00017534,2]
[346346438,1734901853759,-664.65,0.00017534,2]
[346346439,1734901853768,-824.37,0.00017534,2]
[346346440,1734901853778,-5822.56,0.00017534,2]
[346346441,1734901853787,-3691.65,0.00017534,2]
[346346442,1734901853798,-538.47,0.00017534,2]
[346346443,1734901853807,-500.0,0.00017534,2]
[346346444,1734901853816,-2853.18,0.00017534,2]
[346346445,1734901853826,-500.0,0.00017534,2]
[346346446,1734901853835,-500.0,0.00017534,2]
[346346447,1734901853845,-434.42297495,0.00017534,2]
[346346448,1734901853854,-500.0,0.00017534,2]
[346346449,1734901853863,-500.0,0.00017534,2]
[346346450,1734901853872,-1083.63,0.00017534,2]
[346346451,1734901853881,-979.18,0.00017534,2]
[346346452,1734901853890,-537.3,0.00017534,2]
[346346453,1734901853900,-718.12,0.00017534,2]
[346346454,1734901853909,-765.66,0.00017534,2]
[346346455,1734901853918,-500.0,0.00017534,2]
[346346456,1734901853927,-1030.28,0.00017534,2]
[346346457,1734901853937,-500.0,0.00017534,2]
[346346458,1734901853946,-997.01,0.00017534,2]
[346346459,1734901853956,-510.54,0.00017534,2]
[346346460,1734901853965,-9333.04,0.00017534,2]
[346346461,1734901853974,-2728.49,0.00017534,2]
[346346462,1734901853984,-506.08,0.00017534,2]
[346346463,1734901853993,-214.0101375,0.00017534,2]
[346346464,1734901854002,-156.06676808,0.000176,2]
[346346465,1734901854011,-666.0,0.00017708,2]
[346346466,1734901854020,-160.0,0.00017807,2]
[346346467,1734901854029,-500.0,0.00017808,2]
[346346468,1734901854038,-500.0,0.00017808,2]
[346346469,1734901854047,-500.0,0.00017808,2]
[346346470,1734901854057,-500.0,0.00017808,2]
[346346471,1734901854067,-550.78,0.00017808,2]
[346346472,1734901854075,-672.5,0.00017808,2]
[346346473,1734901854085,-500.0,0.00017808,2]
[346346474,1734901854095,-500.0,0.00017808,2]
[346346475,1734901854103,-500.0,0.00017808,2]
[346346476,1734901854113,-516.40149638,0.00017808,2]
[346346477,1734901854122,-500.0,0.00017808,2]
[346346478,1734901854131,-500.0,0.00017808,2]
[346346479,1734901854140,-664.65,0.00017808,2]
[346346480,1734901854150,-824.37,0.00017808,2]
[346346481,1734901854159,-5822.56,0.00017808,2]
[346346482,1734901854169,-3691.65,0.00017808,2]
[346346483,1734901854178,-538.47,0.00017808,2]
[346346484,1734901854188,-500.0,0.00017808,2]
[346346485,1734901854197,-2853.18,0.00017808,2]
[346346486,1734901854206,-500.0,0.00017808,2]
[346346487,1734901854215,-500.0,0.00017808,2]
[346346488,1734901854224,-500.0,0.00017808,2]
[346346489,1734901854233,-500.0,0.00017808,2]
[346346490,1734901854243,-1083.63,0.00017808,2]
[346346491,1734901854252,-979.18,0.00017808,2]
[346346492,1734901854262,-537.3,0.00017808,2]
[346346493,1734901854271,-718.12,0.00017808,2]
[346346494,1734901854280,-765.66,0.00017808,2]
[346346495,1734901854290,-500.0,0.00017808,2]
[346346496,1734901854300,-1030.28,0.00017808,2]
[346346497,1734901854309,-500.0,0.00017808,2]
[346346498,1734901854318,-997.01,0.00017808,2]
[346346499,1734901854327,-510.54,0.00017808,2]
[346346500,1734901854339,-9333.04,0.00017808,2]
[346346501,1734901854349,-2728.49,0.00017808,2]
[346346502,1734901854358,-506.08,0.00017808,2]
[346346503,1734901854367,-153.3554759,0.00017859,2]
[346346504,1734901854376,-216.8507037,0.00017859,2]
[346346505,1734901854386,-160.0,0.00017899,2]
[346346506,1734901854395,-18390.4610955,0.000179,2]
[346346507,1734901854404,-16567.00971054,0.000179,2]
[346346508,1734901854414,-16567.00971051,0.000179,2]
[346346509,1734901854423,-16567.00971051,0.000179,2]
[346346510,1734901854432,-16567.00971051,0.000179,2]
[346346511,1734901854441,-2000.0,0.00017958,2]
[346346512,1734901854450,-166.02,0.00017967,2]
[346346513,1734901854459,-5000.0,0.00018,2]
[346346514,1734901854469,-5000.0,0.00018,2]
[346346515,1734901854478,-5788.03862423,0.00018,2]
[346346516,1734901854490,-251.0,0.00018,2]
[346346517,1734901854499,-29442.2708385,0.00018,15]
[346346518,1734901854508,-5000.0,0.00018,2]
[346346519,1734901854518,-184.28490095,0.00018,5]
[346346520,1734901854527,-151.0,0.00018,2]
[346346521,1734901854538,-21000.0,0.00018,3]
[346346522,1734901854547,-188.0,0.00018,2]
[346346523,1734901854556,-5164.75756255,0.00018,2]
[346346524,1734901854565,-394.41,0.00018,2]
[346346525,1734901854574,-5164.75756255,0.00018,2]
[346346526,1734901854583,-5000.0,0.00018,2]
[346346527,1734901854592,-5000.0,0.00018,2]
[346346528,1734901854601,-1000.0,0.00018,18]
[346346529,1734901854610,-50547.02037864,0.00018,2]
[346346530,1734901854716,-426.554,0.00018,2]
[346346531,1734901854728,-1081.97833632,0.00018,2]
[346346532,1734901854738,-1104.53682,0.00018,2]
[346346533,1734901854750,-7023.55,0.00018,2]
[346346550,1734902842107,-220.31839934,0.00012124,2]
[346346551,1734902842131,-202.70692042,0.00012246,2]
[346346552,1734902899424,1620.66723171,0.0002,120]
[346346555,1734902911353,2471.64383133,0.0002,120]
[346346556,1734902913328,13271.95214312,0.00022,120]
[346346558,1734902945112,-1404.4984776,0.0001228,2]
[346346559,1734902945133,-1404.4984776,0.00012404,2]
[346346560,1734902945155,-300.0,0.00012495,2]
[346346561,1734902945177,-11522.7852448,0.00012496,2]
[346346562,1734902946101,-279.48203452,0.00012496,2]
[346346563,1734902949120,-37.19475658,0.00012496,2]
[346346564,1734902949141,-2332.5740952,0.00012938,2]
[346346565,1734902949165,-16127.9853815,0.00012991,2]
[346346567,1734902956096,-378.15034031,0.00013363,2]
[346346568,1734902956119,-341.19727589,0.00013498,2]
[346346569,1734902963157,-36.95306442,0.00013498,2]
[346346570,1734902963180,-1409.34377607,0.00013597,2]
[346346571,1734902963202,-1507.02278161,0.00013598,2]
[346346666,1734903037864,-1327.93103205,0.00013462,2]
[346346668,1734903037874,-1327.93103205,0.00013598,2]
[346346670,1734903037883,-300.0,0.00013692,2]
[346346672,1734903037893,-500.0,0.00013697,2]
[346346674,1734903037902,-257.74158764,0.00013697,2]
[346346677,1734903037911,-290.70619605,0.00013697,2]
[346346679,1734903037921,-500.0,0.00013697,2]
[346346681,1734903037931,-500.0,0.00013697,2]
[346346683,1734903037940,-500.0,0.00013697,2]
[346346685,1734903037949,-500.0,0.00013697,2]
[346346687,1734903037959,-159.32393815,0.00013697,2]
[346346689,1734903037968,-500.0,0.00013697,2]
[346346691,1734903037977,-500.0,0.00013697,2]
[346346693,1734903037986,-500.0,0.00013697,2]
[346346695,1734903037995,-500.0,0.00013697,2]
[346346697,1734903038004,-500.0,0.00013697,2]
[346346699,1734903038014,-500.0,0.00013697,2]
[346346701,1734903038024,-500.0,0.00013697,2]
[346346703,1734903038033,-486.36621406,0.00013697,2]
[346346705,1734903038045,-13.63378594,0.00013697,2]
[346346707,1734903038054,-500.0,0.00013697,2]
[346346709,1734903038064,-500.0,0.00013697,2]
[346346711,1734903038073,-500.0,0.00013697,2]
[346346713,1734903038082,-500.0,0.00013697,2]
[346346715,1734903038091,-500.0,0.00013697,2]
[346346717,1734903038100,-500.0,0.00013697,2]
[346346719,1734903038110,-500.0,0.00013697,2]
[346346721,1734903038120,-500.0,0.00013697,2]
[346346723,1734903038129,-500.0,0.00013697,2]
[346346725,1734903038138,-500.0,0.00013697,2]
[346346727,1734903038147,-500.0,0.00013697,2]
[346346729,1734903038156,-500.0,0.00013697,2]
[346346731,1734903038166,-500.0,0.00013697,2]
[346346733,1734903038175,-235.2432431,0.00013697,2]
[346346735,1734903038184,-500.0,0.00013697,2]
[346346737,1734903038193,-500.0,0.00013697,2]
[346346739,1734903038202,-500.0,0.00013697,2]
[346346741,1734903038211,-500.0,0.00013697,2]
[346346743,1734903038220,-500.0,0.00013697,2]
[346346745,1734903038230,-500.0,0.00013697,2]
[346346747,1734903038239,-500.0,0.00013697,2]
[346346749,1734903038249,-500.0,0.00013697,2]
[346346751,1734903038258,-500.0,0.00013697,2]
[346346753,1734903038268,-500.0,0.00013697,2]
[346346755,1734903038277,-500.0,0.00013697,2]
[346346757,1734903038286,-500.0,0.00013697,2]
[346346759,1734903038296,-500.0,0.00013697,2]
[346346762,1734903038306,-500.0,0.00013697,2]
[346346764,1734903038315,-500.0,0.00013697,2]
[346346766,1734903038325,-500.0,0.00013697,2]
[346346768,1734903038335,-600.32563676,0.00013697,2]
[346346770,1734903038344,-500.0,0.00013697,2]
[346346772,1734903038354,-500.0,0.00013697,2]
[346346774,1734903038363,-500.0,0.00013697,2]
[346346776,1734903038373,-551.3005195,0.00013697,2]
[346346778,1734903038382,-500.0,0.00013697,2]
[346346780,1734903038391,-500.0,0.00013697,2]
[346346782,1734903038401,-500.0,0.00013697,2]
[346346784,1734903038411,-500.0,0.00013697,2]
[346346786,1734903038420,-500.0,0.00013697,2]
[346346788,1734903038430,-500.0,0.00013697,2]
[346346790,1734903038439,-500.0,0.00013697,2]
[346346792,1734903038448,-500.0,0.00013697,2]
[346346794,1734903038458,-500.0,0.00013697,2]
[346346796,1734903038467,-500.0,0.00013697,2]
[346346798,1734903038477,-500.0,0.00013697,2]
[346346800,1734903038486,-500.0,0.00013698,2]
[346346802,1734903038496,-500.0,0.00013698,2]
[346346804,1734903038505,-500.0,0.00013698,2]
[346346806,1734903038514,-500.0,0.00013698,2]
[346346808,1734903038526,-189.68882962,0.00013698,2]
[346346810,1734903038536,-500.0,0.00013698,2]
[346346812,1734903038545,-500.0,0.00013698,2]
[346346814,1734903038555,-500.0,0.00013698,2]
[346346816,1734903038564,-500.0,0.00013698,2]
[346346818,1734903038574,-510.09408565,0.00013698,2]
[346346820,1734903038583,-500.0,0.00013698,2]
[346346822,1734903038592,-500.0,0.00013698,2]